fUSD/lending_fUSD_20250214
["ID","MTS","AMOUNT","RATE_DAILY","PERIOD"]
[353086162,1739547044030,-500.0,0.0001378,2]
[353086164,1739547044040,-500.0,0.0001378,2]
[353086166,1739547044050,-734.37,0.0001378,2]
[353086168,1739547044059,-500.0,0.0001378,2]
[353086170,1739547044069,-929.095388,0.0001378,2]
[353086172,1739547044079,-500.0,0.0001378,2]
[353086174,1739547044088,-500.0,0.0001378,2]
[353086176,1739547044098,-500.0,0.0001378,2]
[353086178,1739547044107,-500.0,0.0001378,2]
[353086180,1739547044120,-500.0,0.0001378,2]
[353086182,1739547044131,-500.0,0.0001378,2]
[353086184,1739547044144,-500.0,0.0001378,2]
[353086186,1739547044154,-500.0,0.0001378,2]
[353086188,1739547044163,-500.0,0.0001378,2]
[353086190,1739547044173,-500.0,0.0001378,2]
[353086192,1739547044183,-500.0,0.0001378,2]
[353086194,1739547044193,-500.0,0.0001378,2]
[353086196,1739547044203,-528.75,0.0001378,2]
[353086198,1739547044214,-500.0,0.0001378,2]
[353086200,1739547044224,-500.0,0.0001378,2]
[353086202,1739547044238,-500.0,0.0001378,2]
[353086204,1739547044247,-500.0,0.0001378,2]
[353086206,1739547044257,-901.31,0.0001378,2]
[353086208,1739547044267,-500.0,0.0001378,2]
[353086210,1739547044276,-500.0,0.0001378,2]
[353086213,1739547044286,-825.14,0.0001378,2]
[353086215,1739547044296,-500.0,0.0001378,2]
[353086217,1739547044305,-500.0,0.0001378,2]
[353086219,1739547044315,-500.0,0.0001378,2]
[353086221,1739547044324,-520.69,0.0001378,2]
[353086223,1739547044334,-620.3,0.0001378,2]
[353086225,1739547044343,-500.0,0.0001378,2]
[353086227,1739547044353,-500.0,0.0001378,2]
[353086229,1739547044363,-500.0,0.0001378,2]
[353086231,1739547044372,-593.45,0.0001378,2]
[353086233,1739547044382,-500.0,0.0001378,2]
[353086235,1739547044391,-811.67,0.0001378,2]
[353086237,1739547044401,-540.5,0.0001378,2]
[353086239,1739547044410,-537.5,0.0001378,2]
[353086241,1739547044419,-500.0,0.0001378,2]
[353086243,1739547044429,-500.0,0.0001378,2]
[353086245,1739547044439,-1255.73,0.0001378,2]
[353086247,1739547044448,-500.0,0.0001378,2]
[353086249,1739547044458,-587.8,0.0001378,2]
[353086251,1739547044468,-500.0,0.0001378,2]
[353086253,1739547044482,-700.06,0.0001378,2]
[353086255,1739547044492,-590.53,0.0001378,2]
[353086257,1739547044501,-768.73,0.0001378,2]
[353086259,1739547044511,-500.0,0.0001378,2]
[353086261,1739547044522,-1301.75,0.0001378,2]
[353086263,1739547044531,-500.0,0.0001378,2]
[353086265,1739547044541,-500.0,0.0001378,2]
[353086266,1739547044550,-500.0,0.0001378,2]
[353086269,1739547044561,-610.77,0.0001378,2]
[353086270,1739547044571,-500.0,0.0001378,2]
[353086273,1739547044581,-500.0,0.0001378,2]
[353086274,1739547044591,-500.0,0.0001378,2]
[353086276,1739547044600,-500.0,0.0001378,2]
[353086278,1739547044609,-500.0,0.0001378,2]
[353086280,1739547044619,-500.0,0.0001378,2]
[353086282,1739547044630,-613.81,0.0001378,2]
[353086284,1739547044639,-500.0,0.0001378,2]
[353086286,1739547044649,-765.01,0.0001378,2]
[353086289,1739547044659,-500.0,0.0001378,2]
[353086291,1739547044669,-559.1,0.0001378,2]
[353086293,1739547044678,-500.0,0.0001378,2]
[353086295,1739547044687,-500.0,0.0001378,2]
[353086297,1739547044697,-500.0,0.0001378,2]
[353086299,1739547044706,-500.0,0.0001378,2]
[353086301,1739547044715,-500.0,0.0001378,2]
[353086303,1739547044724,-968.66,0.0001378,2]
[353086305,1739547044736,-500.0,0.0001378,2]
[353086307,1739547044746,-500.0,0.0001378,2]
[353086308,1739547044755,-500.0,0.0001378,2]
[353086311,1739547044765,-500.0,0.0001378,2]
[353086313,1739547044774,-500.0,0.0001378,2]
[353086315,1739547044785,-500.0,0.0001378,2]
[353086316,1739547044794,-500.0,0.0001378,2]
[353086317,1739547044804,-705.15,0.0001378,2]
[353086318,1739547044814,-639.73,0.0001378,2]
[353086319,1739547044824,-925.2,0.0001378,2]
[353086320,1739547044835,-500.0,0.0001378,2]
[353086321,1739547044846,-500.0,0.0001378,2]
[353086322,1739547044856,-500.0,0.0001378,2]
[353086323,1739547044866,-645.93,0.0001378,2]
[353086324,1739547044880,-973.36,0.0001378,2]
[353086325,1739547044892,-800.87,0.0001378,2]
[353086326,1739547044902,-500.0,0.0001378,2]
[353086327,1739547044913,-500.0,0.0001378,2]
[353086328,1739547044923,-500.0,0.0001378,2]
[353086330,1739547044933,-631.82,0.0001378,2]
[353086332,1739547044944,-500.0,0.0001378,2]
[353086334,1739547044955,-500.0,0.0001378,2]
[353086336,1739547044965,-1077.54,0.0001378,2]
[353086338,1739547044975,-500.0,0.0001378,2]
[353086340,1739547044989,-500.0,0.0001378,2]
[353086342,1739547045000,-500.0,0.0001378,2]
[353086344,1739547045010,-500.0,0.0001378,2]
[353086346,1739547045019,-652.8,0.0001378,2]
[353086348,1739547045029,-561.9,0.0001378,2]
[353086350,1739547045039,-665.41,0.0001378,2]
[353086352,1739547045050,-722.65,0.0001378,2]
[353086354,1739547045059,-500.0,0.0001378,2]
[353086356,1739547045070,-500.0,0.0001378,2]
[353086358,1739547045079,-500.0,0.0001378,2]
[353086360,1739547045089,-500.0,0.0001378,2]
[353086363,1739547045099,-500.0,0.0001378,2]
[353086365,1739547045108,-614.62,0.0001378,2]
[353086367,1739547045118,-500.0,0.0001378,2]
[353086369,1739547045128,-500.0,0.0001378,2]
[353086371,1739547045137,-500.0,0.0001378,2]
[353086373,1739547045147,-500.0,0.0001378,2]
[353086375,1739547045156,-752.7,0.0001378,2]
[353086377,1739547045166,-500.0,0.0001378,2]
[353086379,1739547045175,-1022.9,0.0001378,2]
[353086381,1739547045185,-376.7694404,0.0001378,2]
[353086383,1739547045194,-500.0,0.0001378,2]
[353086385,1739547045204,-500.0,0.0001378,2]
[353086387,1739547045214,-500.0,0.0001378,2]
[353086389,1739547045224,-509.78,0.0001378,2]
[353086391,1739547045238,-1290.19,0.0001378,2]
[353086393,1739547045249,-500.0,0.0001378,2]
[353086395,1739547045259,-500.0,0.0001378,2]
[353086397,1739547045269,-969.26,0.0001378,2]
[353086399,1739547045280,-500.0,0.0001378,2]
[353086400,1739547045291,-500.0,0.0001378,2]
[353086401,1739547045301,-695.33,0.0001378,2]
[353086402,1739547045310,-500.0,0.0001378,2]
[353086403,1739547045320,-500.0,0.0001378,2]
[353086404,1739547045330,-500.0,0.0001378,2]
[353086405,1739547045339,-500.0,0.0001378,2]
[353086406,1739547045349,-500.0,0.0001378,2]
[353086407,1739547045358,-500.0,0.0001378,2]
[353086408,1739547045368,-847.97,0.0001378,2]
[353086409,1739547045377,-500.0,0.0001378,2]
[353086410,1739547045387,-533.95,0.0001378,2]
[353086411,1739547045396,-500.0,0.0001378,2]
[353086412,1739547045406,-500.0,0.0001378,2]
[353086413,1739547045415,-500.0,0.0001378,2]
[353086414,1739547045424,-500.0,0.0001378,2]
[353086415,1739547045434,-500.0,0.0001378,2]
[353086416,1739547045443,-577.32,0.0001378,2]
[353086417,1739547045453,-500.0,0.0001378,2]
[353086419,1739547045463,-505.18,0.0001378,2]
[353086421,1739547045473,-500.0,0.0001378,2]
[353086422,1739547045487,-1285.47,0.0001378,2]
[353086423,1739547045497,-500.0,0.0001378,2]
[353086426,1739547045506,-505.6,0.0001378,2]
[353086428,1739547045516,-523.02,0.0001378,2]
[353086430,1739547045526,-536.24,0.0001378,2]
[353086433,1739547045607,-500.0,0.0001378,2]
[353086434,1739547045617,-769.76,0.0001378,2]
[353086435,1739547045626,-500.0,0.0001378,2]
[353086436,1739547045635,-500.0,0.0001378,2]
[353086438,1739547045645,-758.5,0.0001378,2]
[353086439,1739547045655,-500.0,0.0001378,2]
[353086440,1739547045666,-500.0,0.0001378,2]
[353086441,1739547045675,-632.85,0.0001378,2]
[353086442,1739547045684,-500.0,0.0001378,2]
[353086443,1739547045694,-550.63,0.0001378,2]
[353086444,1739547045703,-500.0,0.0001378,2]
[353086445,1739547045712,-500.0,0.0001378,2]
[353086446,1739547045721,-569.56,0.0001378,2]
[353086447,1739547045734,-500.0,0.0001378,2]
[353086448,1739547045744,-500.0,0.0001378,2]
[353086449,1739547045754,-504.36845584,0.0001378,2]
[353086450,1739547045763,-500.0,0.0001378,2]
[353086451,1739547045772,-500.0,0.0001378,2]
[353086452,1739547045781,-500.0,0.0001378,2]
[353086453,1739547045791,-1209.03,0.0001378,2]
[353086454,1739547045800,-554.09,0.0001378,2]
[353086455,1739547045810,-744.55,0.0001378,2]
[353086456,1739547045819,-500.0,0.0001378,2]
[353086457,1739547045828,-1310.54,0.0001378,2]
[353086458,1739547045837,-500.0,0.0001378,2]
[353086459,1739547045846,-901.13,0.0001378,2]
[353086461,1739547045856,-556.24,0.0001378,2]
[353086463,1739547045865,-500.0,0.0001378,2]
[353086465,1739547045875,-500.0,0.0001378,2]
[353086466,1739547045885,-500.0,0.0001378,2]
[353086468,1739547045895,-1039.95,0.0001378,2]
[353086470,1739547045903,-730.13,0.0001378,2]
[353086472,1739547045913,-946.72,0.0001378,2]
[353086474,1739547045923,-637.72,0.0001378,2]
[353086476,1739547045932,-741.57,0.0001378,2]
[353086478,1739547045941,-504.92,0.0001378,2]
[353086480,1739547045953,-1053.28,0.0001378,2]
[353086482,1739547045962,-500.0,0.0001378,2]
[353086484,1739547045971,-541.72,0.0001378,2]
[353086486,1739547045982,-1153.4,0.0001378,2]
[353086488,1739547045991,-500.0,0.0001378,2]
[353086490,1739547046000,-1190.95,0.0001378,2]
[353086492,1739547046010,-723.34,0.0001378,2]
[353086494,1739547046019,-500.0,0.0001378,2]
[353086496,1739547046028,-620.71,0.0001378,2]
[353086498,1739547046037,-585.1,0.0001378,2]
[353086499,1739547046047,-703.21,0.0001378,2]
[353086500,1739547046056,-500.0,0.0001378,2]
[353086501,1739547046065,-500.0,0.0001378,2]
[353086502,1739547046075,-605.18,0.0001378,2]
[353086503,1739547046084,-801.6,0.0001378,2]
[353086504,1739547046094,-500.0,0.0001378,2]
[353086505,1739547046103,-500.0,0.0001378,2]
[353086506,1739547046113,-1650.99,0.0001378,2]
[353086507,1739547046122,-1037.07,0.0001378,2]
[353086508,1739547046132,-1041.78,0.0001378,2]
[353086509,1739547046141,-313.4412625,0.0001378,2]
[353086510,1739547046151,-1255.99,0.0001378,2]
[353086511,1739547046160,-1085.37,0.0001378,2]
[353086512,1739547046170,-1628.3,0.0001378,2]
[353086514,1739547046179,-1655.56,0.0001378,2]
[353086515,1739547046188,-734.86,0.0001378,2]
[353086517,1739547046198,-1133.0,0.0001378,2]
[353086519,1739547046207,-1959.72,0.0001378,2]
[353086521,1739547046217,-928.72,0.0001378,2]
[353086523,1739547046226,-1161.13,0.0001378,2]
[353086525,1739547046238,-750.43,0.0001378,2]
[353086527,1739547046247,-889.32,0.0001378,2]
[353086529,1739547046257,-1026.58,0.0001378,2]
[353086531,1739547046266,-1068.38,0.0001378,2]
[353086533,1739547046275,-2079.33,0.0001378,2]
[353086535,1739547046284,-500.0,0.0001378,2]
[353086537,1739547046293,-1783.7,0.0001378,2]
[353086539,1739547046303,-1636.89,0.0001378,2]
[353086541,1739547046312,-500.0,0.0001378,2]
[353086542,1739547046322,-500.0,0.0001378,2]
[353086544,1739547046331,-915.24,0.0001378,2]
[353086546,1739547046340,-2481.03,0.0001378,2]
[353086548,1739547046349,-596.3,0.0001378,2]
[353086550,1739547046361,-782.99,0.0001378,2]
[353086552,1739547046370,-585.18,0.0001378,2]
[353086554,1739547046380,-1673.14,0.0001378,2]
[353086556,1739547046390,-2011.54,0.0001378,2]
[353086558,1739547046400,-1170.26,0.0001378,2]
[353086560,1739547046409,-4990.41,0.0001378,2]
[353086562,1739547046419,-2998.97,0.0001378,2]
[353086564,1739547046428,-500.0,0.0001378,2]
[353086566,1739547046437,-1001.03,0.0001378,2]
[353086567,1739547046447,-989.3,0.0001378,2]
[353086568,1739547046456,-520.22,0.0001378,2]
[353086569,1739547046465,-688.51,0.0001378,2]
[353086570,1739547046474,-678.8,0.0001378,2]
[353086571,1739547046486,-1363.21,0.0001378,2]
[353086572,1739547046495,-500.0,0.0001378,2]
[353086573,1739547046505,-1791.44,0.0001378,2]
[353086574,1739547046514,-1067.42,0.0001378,2]
[353086575,1739547046524,-1465.77,0.0001378,2]
[353086576,1739547046533,-828.43,0.0001378,2]
[353086577,1739547046541,-1561.87,0.0001378,2]
[353086578,1739547046550,-672.48,0.0001378,2]
[353086579,1739547046559,-592.16,0.0001378,2]
[353086580,1739547046568,-1256.48,0.0001378,2]
[353086581,1739547046577,-9362.04,0.0001378,2]
[353086582,1739547046586,-904.59,0.0001378,2]
[353086583,1739547046595,-2714.17,0.0001378,2]
[353086584,1739547046604,-500.0,0.0001378,2]
[353086585,1739547046613,-500.0,0.0001378,2]
[353086586,1739547046623,-1801.1,0.0001378,2]
[353086587,1739547046632,-1025.59,0.0001378,2]
[353086588,1739547046641,-1612.01,0.0001378,2]
[353086589,1739547046650,-1589.04,0.0001378,2]
[353086590,1739547046659,-500.0,0.0001378,2]
[353086591,1739547046668,-500.0,0.0001378,2]
[353086592,1739547046677,-1974.09,0.0001378,2]
[353086593,1739547046686,-976.98,0.0001378,2]
[353086594,1739547046694,-2606.81,0.0001378,2]
[353086595,1739547046703,-1785.18,0.0001378,2]
[353086596,1739547046712,-1665.44,0.0001378,2]
[353086597,1739547046722,-1692.52,0.0001378,2]
[353086598,1739547046735,-1483.2,0.0001378,2]
[353086599,1739547046744,-1273.87,0.0001378,2]
[353086600,1739547046754,-1391.02,0.0001378,2]
[353086601,1739547046763,-1140.09,0.0001378,2]
[353086602,1739547046772,-2405.2,0.0001378,2]
[353086603,1739547046782,-593.47,0.0001378,2]
[353086604,1739547046791,-956.65,0.0001378,2]
[353086605,1739547046800,-1979.76,0.0001378,2]
[353086606,1739547046809,-1070.75,0.0001378,2]
[353086607,1739547046820,-1271.97,0.0001378,2]
[353086608,1739547046830,-1181.34,0.0001378,2]
[353086609,1739547046839,-500.0,0.0001378,2]
[353086610,1739547046850,-2236.84,0.0001378,2]
[353086611,1739547046859,-5030.97,0.0001378,2]
[353086612,1739547046870,-500.0,0.0001378,2]
[353086613,1739547046884,-1455.82,0.0001378,2]
[353086614,1739547046893,-1524.96,0.0001378,2]
[353086615,1739547046904,-633.74,0.0001378,2]
[353086616,1739547046915,-1651.71,0.0001378,2]
[353086617,1739547046924,-871.75,0.0001378,2]
[353086618,1739547046934,-1935.45,0.0001378,2]
[353086619,1739547046944,-500.0,0.0001378,2]
[353086620,1739547046955,-1041.65,0.0001378,2]
[353086621,1739547046966,-1549.69,0.0001378,2]
[353086622,1739547046976,-500.0,0.0001378,2]
[353086623,1739547046989,-500.0,0.0001378,2]
[353086624,1739547046999,-500.0,0.0001378,2]
[353086625,1739547047009,-500.0,0.0001378,2]
[353086626,1739547047019,-500.0,0.0001378,2]
[353086627,1739547047029,-2207.17,0.0001378,2]
[353086628,1739547047039,-2339.68,0.0001378,2]
[353086629,1739547047049,-1445.67,0.0001378,2]
[353086630,1739547047059,-500.0,0.0001378,2]
[353086631,1739547047069,-500.0,0.0001378,2]
[353086632,1739547047079,-2397.18,0.0001378,2]
[353086633,1739547047090,-1883.32,0.0001378,2]
[353086634,1739547047099,-1592.63,0.0001378,2]
[353086635,1739547047109,-975.59,0.0001378,2]
[353086636,1739547047118,-1726.96,0.0001378,2]
[353086637,1739547047128,-1557.27,0.0001378,2]
[353086638,1739547047137,-2611.81,0.0001378,2]
[353086639,1739547047147,-4751.16,0.0001378,2]
[353086640,1739547047156,-660.73,0.0001378,2]
[353086641,1739547047166,-1165.18,0.0001378,2]
[353086642,1739547047175,-930.83,0.0001378,2]
[353086643,1739547047185,-1053.59,0.0001378,2]
[353086644,1739547047194,-1326.24,0.0001378,2]
[353086645,1739547047204,-508.35,0.0001378,2]
[353086646,1739547047213,-500.0,0.0001378,2]
[353086647,1739547047223,-500.0,0.0001378,2]
[353086648,1739547047233,-1916.09,0.0001378,2]
[353086649,1739547047243,-1511.15,0.0001378,2]
[353086650,1739547047253,-1967.0,0.0001378,2]
[353086651,1739547047262,-500.0,0.0001378,2]
[353086652,1739547047271,-845.96,0.0001378,2]
[353086653,1739547047280,-2652.37,0.0001378,2]
[353086654,1739547047289,-500.0,0.0001378,2]
[353086655,1739547047299,-533.03,0.0001378,2]
[353086656,1739547047308,-325.11627272,0.0001378,2]
[353086657,1739547047317,-1948.25,0.0001378,2]
[353086658,1739547047327,-1802.4,0.0001378,2]
[353086659,1739547047338,-1967.66,0.0001378,2]
[353086660,1739547047347,-840.17,0.0001378,2]
[353086661,1739547047358,-500.0,0.0001378,2]
[353086662,1739547047368,-2436.23,0.0001378,2]
[353086663,1739547047378,-500.0,0.0001378,2]
[353086664,1739547047387,-1166.62,0.0001378,2]
[353086665,1739547047397,-500.0,0.0001378,2]
[353086666,1739547047407,-1638.05,0.0001378,2]
[353086667,1739547047417,-2543.79,0.0001378,2]
[353086668,1739547047426,-500.0,0.0001378,2]
[353086669,1739547047435,-1667.53,0.0001378,2]
[353086670,1739547047445,-2411.42,0.0001378,2]
[353086671,1739547047455,-500.0,0.0001378,2]
[353086672,1739547047465,-500.0,0.0001378,2]
[353086673,1739547047475,-556.06,0.0001378,2]
[353086674,1739547047489,-500.0,0.0001378,2]
[353086675,1739547047498,-1834.36,0.0001378,2]
[353086676,1739547047508,-2038.77,0.0001378,2]
[353086677,1739547047520,-500.0,0.0001378,2]
[353086678,1739547047529,-2306.92,0.0001378,2]
[353086679,1739547047538,-500.0,0.0001378,2]
[353086680,1739547047548,-500.0,0.0001378,2]
[353086681,1739547047557,-1695.01,0.0001378,2]
[353086682,1739547047567,-793.5,0.0001378,2]
[353086683,1739547047577,-500.0,0.0001378,2]
[353086684,1739547047586,-1844.95,0.0001378,2]
[353086685,1739547047596,-500.0,0.0001378,2]
[353086686,1739547047605,-761.02,0.0001378,2]
[353086687,1739547047615,-2003.88,0.0001378,2]
[353086688,1739547047625,-500.0,0.0001378,2]
[353086689,1739547047634,-1313.94,0.0001378,2]
[353086690,1739547047644,-874.8,0.0001378,2]
[353086691,1739547047654,-1429.65,0.0001378,2]
[353086692,1739547047664,-2974.54,0.0001378,2]
[353086693,1739547047675,-500.0,0.0001378,2]
[353086694,1739547047686,-500.0,0.0001378,2]
[353086695,1739547047695,-150.0,0.00013782,2]
[353086696,1739547047705,-2200.0,0.000138,5]
[353086697,1739547047716,-163.33156499,0.00013856,2]
[353086698,1739547047725,-500.0,0.00013863,2]
[353086699,1739547047737,-500.0,0.00013863,2]
[353086700,1739547047746,-500.0,0.00013863,2]
[353086701,1739547047755,-500.0,0.00013863,2]
[353086702,1739547047764,-500.0,0.00013863,2]
[353086703,1739547047774,-500.0,0.00013863,2]
[353086704,1739547047783,-500.0,0.00013863,2]
[353086705,1739547047792,-500.0,0.00013863,2]
[353086706,1739547047802,-500.0,0.00013863,2]
[353086707,1739547047811,-500.0,0.00013863,2]
[353086708,1739547047820,-500.0,0.00013863,2]
[353086709,1739547047830,-721.11,0.00013863,2]
[353086710,1739547047840,-500.0,0.00013863,2]
[353086711,1739547047849,-232.4059612,0.00013863,2]
[353086712,1739547047858,-500.0,0.00013863,2]
[353086713,1739547047868,-500.0,0.00013863,2]
[353086714,1739547047879,-500.0,0.00013863,2]
[353086715,1739547047889,-500.0,0.00013863,2]
[353086716,1739547047899,-500.0,0.00013863,2]
[353086717,1739547047909,-500.0,0.00013863,2]
[353086718,1739547047919,-500.0,0.00013863,2]
[353086719,1739547047929,-500.0,0.00013863,2]
[353086720,1739547047938,-500.0,0.00013863,2]
[353086721,1739547047948,-500.0,0.00013863,2]
[353086722,1739547047959,-500.0,0.00013863,2]
[353086723,1739547047968,-500.0,0.00013863,2]
[353086724,1739547047981,-500.0,0.00013863,2]
[353086725,1739547047991,-500.0,0.00013863,2]
[353086726,1739547048001,-500.0,0.00013863,2]
[353086727,1739547048011,-500.0,0.00013863,2]
[353086728,1739547048021,-500.0,0.00013863,2]
[353086729,1739547048030,-500.0,0.00013863,2]
[353086730,1739547048041,-500.0,0.00013863,2]
[353086731,1739547048051,-500.0,0.00013863,2]
[353086732,1739547048061,-500.0,0.00013863,2]
[353086733,1739547048071,-589.39,0.00013863,2]
[353086734,1739547048081,-500.0,0.00013863,2]
[353086735,1739547048092,-650.077231,0.00013863,2]
[353086736,1739547048101,-500.0,0.00013863,2]
[353086737,1739547048112,-500.0,0.00013863,2]
[353086738,1739547048121,-734.37,0.00013863,2]
[353086739,1739547048132,-500.0,0.00013863,2]
[353086740,1739547048142,-929.095388,0.00013863,2]
[353086741,1739547048152,-500.0,0.00013863,2]
[353086742,1739547048162,-500.0,0.00013863,2]
[353086743,1739547048171,-500.0,0.00013863,2]
[353086744,1739547048181,-500.0,0.00013863,2]
[353086745,1739547048191,-500.0,0.00013863,2]
[353086746,1739547048201,-500.0,0.00013863,2]
[353086747,1739547048211,-500.0,0.00013863,2]
[353086748,1739547048222,-500.0,0.00013863,2]
[353086749,1739547048234,-500.0,0.00013863,2]
[353086750,1739547048244,-500.0,0.00013863,2]
[353086751,1739547048254,-500.0,0.00013863,2]
[353086752,1739547048264,-331.00461989,0.00013863,2]
[353086753,1739547048275,-528.75,0.00013863,2]
[353086754,1739547048286,-500.0,0.00013863,2]
[353086755,1739547048296,-500.0,0.00013863,2]
[353086756,1739547048307,-500.0,0.00013863,2]
[353086757,1739547048318,-500.0,0.00013863,2]
[353086758,1739547048328,-901.31,0.00013863,2]
[353086759,1739547048338,-500.0,0.00013863,2]
[353086760,1739547048349,-500.0,0.00013863,2]
[353086761,1739547048360,-825.14,0.00013863,2]
[353086762,1739547048371,-500.0,0.00013863,2]
[353086763,1739547048381,-500.0,0.00013863,2]
[353086764,1739547048391,-500.0,0.00013863,2]
[353086765,1739547048401,-520.69,0.00013863,2]
[353086766,1739547048412,-620.3,0.00013863,2]
[353086767,1739547048423,-500.0,0.00013863,2]
[353086768,1739547048435,-500.0,0.00013863,2]
[353086769,1739547048447,-593.45,0.00013863,2]
[353086770,1739547048458,-500.0,0.00013863,2]
[353086771,1739547048469,-811.67,0.00013863,2]
[353086772,1739547048481,-540.5,0.00013863,2]
[353086773,1739547048491,-537.5,0.00013863,2]
[353086774,1739547048503,-500.0,0.00013863,2]
[353086775,1739547048514,-500.0,0.00013863,2]
[353086776,1739547048525,-1255.73,0.00013863,2]
[353086777,1739547048537,-500.0,0.00013863,2]
[353086778,1739547048548,-587.8,0.00013863,2]
[353086779,1739547048559,-500.0,0.00013863,2]
[353086780,1739547048569,-700.06,0.00013863,2]
[353086781,1739547048580,-590.53,0.00013863,2]
[353086782,1739547048591,-768.73,0.00013863,2]
[353086783,1739547048602,-500.0,0.00013863,2]
[353086784,1739547048613,-1301.75,0.00013863,2]
[353086785,1739547048623,-500.0,0.00013863,2]
[353086786,1739547048633,-500.0,0.00013863,2]
[353086787,1739547048643,-500.0,0.00013863,2]
[353086788,1739547048654,-610.77,0.00013863,2]
[353086789,1739547048664,-500.0,0.00013863,2]
[353086790,1739547048674,-500.0,0.00013863,2]
[353086791,1739547048684,-500.0,0.00013863,2]
[353086792,1739547048696,-500.0,0.00013863,2]
[353086793,1739547048708,-500.0,0.00013863,2]
[353086794,1739547048719,-500.0,0.00013863,2]
[353086795,1739547048733,-613.81,0.00013863,2]
[353086796,1739547048746,-500.0,0.00013863,2]
[353086797,1739547048757,-765.01,0.00013863,2]
[353086798,1739547048769,-500.0,0.00013863,2]
[353086799,1739547048780,-559.1,0.00013863,2]
[353086800,1739547048790,-500.0,0.00013863,2]
[353086801,1739547048801,-500.0,0.00013863,2]
[353086802,1739547048811,-500.0,0.00013863,2]
[353086803,1739547048822,-500.0,0.00013863,2]
[353086804,1739547048833,-500.0,0.00013863,2]
[353086805,1739547048843,-968.66,0.00013863,2]
[353086806,1739547048854,-500.0,0.00013863,2]
[353086807,1739547048865,-500.0,0.00013863,2]
[353086808,1739547048880,-500.0,0.00013863,2]
[353086809,1739547048891,-500.0,0.00013863,2]
[353086810,1739547048902,-500.0,0.00013863,2]
[353086811,1739547048913,-500.0,0.00013863,2]
[353086812,1739547048923,-500.0,0.00013863,2]
[353086813,1739547048934,-705.15,0.00013863,2]
[353086814,1739547048945,-639.73,0.00013863,2]
[353086815,1739547048955,-925.2,0.00013863,2]
[353086816,1739547048966,-246.0971816,0.00013863,2]
[353086817,1739547048982,-500.0,0.00013863,2]
[353086818,1739547048994,-500.0,0.00013863,2]
[353086819,1739547049006,-645.93,0.00013863,2]
[353086820,1739547049016,-973.36,0.00013863,2]
[353086821,1739547049028,-800.87,0.00013863,2]
[353086822,1739547049038,-500.0,0.00013863,2]
[353086823,1739547049049,-500.0,0.00013863,2]
[353086824,1739547049059,-500.0,0.00013863,2]
[353086825,1739547049070,-631.82,0.00013863,2]
[353086826,1739547049081,-500.0,0.00013863,2]
[353086827,1739547049090,-500.0,0.00013863,2]
[353086828,1739547049101,-1077.54,0.00013863,2]